bitfinex-derivatives/quotes_SOLF0:USTF0_20250829
["timestamp","ask_amount","ask_price","bid_price","bid_amount"]
[1756455666744,0.03,207.03,206.9,150.16]
[1756455667051,67.6148,207.02,206.9,150.16]
[1756455667552,4.3468,207.02,206.9,150.16]
[1756455667755,0.03,207.08,206.93,7.2]
[1756455667942,67.6054,207.05,206.93,7.2]
[1756455668142,0.03,207.08,206.93,7.2]
[1756455669247,67.5984,207.07,206.93,7.2]
[1756455669748,0.03,207.08,206.93,7.2]
[1756455669749,67.6122,207.03,206.93,7.2]
[1756455669946,67.625,206.99,206.9,150.16]
[1756455670347,67.615,207.02,206.9,150.16]
[1756455670348,67.6312,206.97,206.9,150.16]
[1756455670741,67.6278,206.98,206.9,150.16]
[1756455670948,67.6375,206.95,206.88,324.22]
[1756455671148,67.6578,206.98,206.88,324.22]
[1756455671344,67.635,206.96,206.88,324.22]
[1756455671549,67.631,206.97,206.81,23.23616846]
[1756455671550,67.6476,206.92,206.81,18.88526846]
[1756455671850,67.6505,206.91,206.77,7.2]
[1756455672053,67.6572,206.89,206.78,149.52]
[1756455672250,67.6642,206.87,206.7,3.9959744]
[1756455672450,0.03,206.88,206.71,149.56]
[1756455672754,67.6689,206.86,206.71,149.56]
[1756455672953,67.665,206.87,206.71,149.56]
[1756455673157,4.3509,206.82,206.71,149.56]
[1756455673356,0.03,206.88,206.71,149.56]
[1756455673556,0.03,206.88,206.72,62.0]
[1756455673755,67.6676,206.86,206.72,62.0]
[1756455674053,0.03,206.88,206.73,7.2]
[1756455674259,4.3502,206.85,206.73,7.2]
[1756455674460,67.6403,206.95,206.74,18.88526846]
[1756455674756,67.6835,206.81,206.7,126.74]
[1756455674958,67.6871,206.8,206.66,0.84096566]
[1756455675254,67.7329,206.75,206.58,18.88526846]
[1756455675460,0.03,206.82,206.64,157.7]
[1756455675654,67.6851,206.81,206.68,18.88526846]
[1756455675853,0.03,206.89,206.74,7.2]
[1756455676048,67.6613,206.88,206.74,7.2]
[1756455676250,4.3507,206.83,206.74,7.2]
[1756455676457,67.6673,206.86,206.63,328.4359744]
[1756455676458,67.6908,206.79,206.64,7.2]
[1756455676657,67.6908,206.79,206.64,177.30526846]
[1756455676658,67.6981,206.77,206.64,177.30526846]
[1756455676856,0.03,206.81,206.64,158.42]
[1756455677261,0.03,206.81,206.65,62.0]
[1756455677459,0.03,206.81,206.67,18.88526846]
[1756455678162,67.6915,206.79,206.67,18.88526846]
[1756455678365,0.03,206.81,206.68,151.26]
[1756455678764,67.6805,206.82,206.68,151.26]
[1756455678958,67.6802,206.82,206.69,7.2]
[1756455679156,67.6675,206.86,206.7,151.16]
[1756455679362,4.3495,206.89,206.73,7.2]
[1756455679556,67.6546,206.9,206.73,7.2]
[1756455679762,67.6802,206.82,206.73,7.2]
[1756455679961,4.3799,206.87,206.73,7.2]
[1756455680164,67.6673,206.86,206.73,7.2]
[1756455680465,0.03,206.87,206.73,7.2]
[1756455680663,67.6394,206.95,206.72,104.66]
[1756455680664,67.6259,206.99,206.77,18.88526846]
[1756455680867,67.6416,206.94,206.83,7.2]
[1756455681057,4.349,206.91,206.83,148.8]
[1756455681262,67.6376,206.95,206.83,148.8]
[1756455681467,4.3478,206.97,206.83,148.8]
[1756455681669,67.6215,207.0,206.84,7.2]
[1756455681861,67.6134,207.03,206.84,7.2]
[1756455682465,67.6134,207.03,206.87,18.88526846]
[1756455682760,0.03,207.05,206.88,7.2]
[1756455683163,67.6084,207.04,206.88,7.2]
[1756455683969,0.03,207.05,206.88,26.08526846]
[1756455684468,0.03,207.05,206.89,62.0]
[1756455684672,67.5909,207.1,206.9,7.2]
[1756455684874,67.5886,207.1,206.94,7.2]
[1756455685168,0.03,207.11,206.94,7.2]
[1756455685169,67.6157,207.11,206.94,7.2]
[1756455685369,0.03,207.11,206.94,7.2]
[1756455685671,4.3748,207.11,206.94,7.2]
[1756455685870,67.5961,207.08,206.94,7.2]
[1756455686070,67.6025,207.06,206.94,7.2]
[1756455686377,67.6025,207.06,206.77,5.23793786]
[1756455686378,67.6283,206.98,206.86,7.2]
[1756455686868,67.6412,206.94,206.8,7.2]
[1756455687066,67.6366,206.96,206.8,7.2]
[1756455687268,4.3484,206.94,206.8,7.2]
[1756455687477,67.6382,206.95,206.8,7.2]
[1756455687875,67.6382,206.95,206.81,62.0]
[1756455688170,0.03,206.94,206.8,7.2]
[1756455688565,4.3485,206.93,206.8,7.2]
[1756455688969,4.3485,206.93,206.8,6.2]
[1756455689470,67.6545,206.9,206.8,6.2]
[1756455689670,67.6445,206.93,206.74,67.7052]
[1756455689872,4.3504,206.84,206.72,324.66]
[1756455690371,67.6643,206.87,206.72,324.66]
[1756455690766,87.57236846,206.89,206.72,324.66]
[1756455690974,87.57236846,206.89,206.72,331.86]
[1756455691170,150.2,206.93,206.73,62.0]
[1756455691367,1.03,206.95,206.74,7.2]
[1756455691567,4.3488,206.92,206.74,7.2]
[1756455691767,1.03,206.95,206.74,7.2]
[1756455691970,1.03,206.95,206.75,7.2]
[1756455692170,4.3486,206.93,206.75,7.2]
[1756455692877,18.88526846,206.99,206.75,7.2]
[1756455692878,67.5954,207.08,206.88,7.2]
[1756455693068,1.03,207.11,206.9,7.2]
[1756455693267,67.5887,207.1,206.9,7.2]
[1756455693470,67.5995,207.07,206.9,7.2]
[1756455693675,67.6221,207.0,206.86,324.68]
[1756455693878,67.6311,206.97,206.86,324.68]
[1756455694480,1.03,207.0,206.86,324.68]
[1756455694676,1.03,207.0,206.86,386.68]
[1756455694878,67.6181,207.01,206.86,386.68]
[1756455695074,67.6248,206.99,206.86,475.06]
[1756455695278,67.6217,207.0,206.86,475.06]
[1756455695479,67.6217,207.0,206.86,475.08]
[1756455695678,67.6347,206.96,206.86,324.68]
[1756455695880,67.628,206.98,206.86,324.68]
[1756455696181,4.3483,206.94,206.86,324.68]
[1756455697782,4.3478,206.97,206.86,324.68]
[1756455698279,5.3772,207.0,206.86,332.48]
[1756455698585,1.04,207.06,206.86,332.48]
[1756455699476,1.04,207.06,206.86,324.68]
[1756455699676,76.2695,207.13,206.86,324.68]
[1756455699677,87.50576846,207.13,206.88,11.80978555]
[1756455699879,1.04,207.13,206.93,7.8]
[1756455700080,4.3452,207.09,206.93,7.8]
[1756455700384,67.5856,207.11,206.94,149.56]
[1756455700586,1.04,207.13,206.95,7.8]
[1756455700785,4.345,207.1,206.95,7.8]
[1756455701288,4.345,207.1,206.96,149.5]
[1756455701486,67.5764,207.14,206.97,7.8]
[1756455701787,67.5991,207.07,206.98,62.0]
[1756455701980,4.3464,207.03,206.98,62.0]
[1756455702478,67.6187,207.01,206.91,149.36]
[1756455702682,67.6222,207.0,206.9,7.8]
[1756455702882,67.6219,207.0,206.9,7.8]
[1756455703088,68.6531,207.03,206.9,7.8]
[1756455703381,67.6152,207.02,206.9,7.8]
[1756455703586,4.3464,207.03,206.9,7.8]
[1756455703785,67.5987,207.07,206.9,7.8]
[1756455703989,67.5987,207.07,206.91,149.22]
[1756455704789,67.5953,207.08,206.91,149.22]
[1756455705086,1.04,207.09,206.9,7.8]
[1756455705284,67.5955,207.08,206.91,210.96]
[1756455705594,67.6028,207.06,206.92,148.92]
[1756455705788,1.04,207.07,206.93,148.88]
[1756455706391,1.04,207.07,206.9,7.8]
[1756455706689,1.04,207.07,206.91,148.82]
[1756455707084,1.04,207.07,206.9,11.80978555]
[1756455707285,67.5802,207.13,206.92,11.80978555]
[1756455707484,338.88526846,207.4,207.01,7.8]
[1756455707485,1.04,207.21,207.01,7.8]
[1756455707688,1.04,207.21,207.06,7.8]
[1756455708089,67.5561,207.2,207.06,7.8]
[1756455708388,4.3432,207.19,207.06,7.8]
[1756455708587,67.5565,207.2,207.06,7.8]
[1756455708891,4.3435,207.17,207.07,62.0]
[1756455709086,1.04,207.21,207.07,62.0]
[1756455709087,67.537,207.26,207.08,167.48526846]
[1756455709296,67.5566,207.2,207.07,62.0]
[1756455709485,67.5727,207.15,207.02,324.6]
[1756455709688,67.5799,207.13,207.02,473.34]
[1756455709989,4.3439,207.16,207.02,492.22526846]
[1756455710188,67.5566,207.2,207.02,492.22526846]
[1756455710590,67.5566,207.2,207.03,7.8]
[1756455710791,4.3433,207.18,207.03,7.8]
[1756455710987,68.5914,207.22,207.03,7.8]
[1756455711189,1.04,207.22,207.03,4.00978555]
[1756455711391,1.04,207.22,207.05,7.8]
[1756455711787,68.5898,207.22,207.05,7.8]
[1756455711987,67.5759,207.14,206.99,7.8]
[1756455712191,68.607,207.17,207.0,105.72]
[1756455712394,4.3445,207.12,207.0,105.72]
[1756455712590,67.5791,207.13,206.99,7.8]
[1756455712788,68.607,207.17,207.0,148.78]
[1756455712987,1.04,207.24,207.07,18.88526846]
[1756455713292,1.04,207.24,207.09,7.8]
[1756455713492,4.3426,207.21,207.09,7.8]
[1756455713688,67.5467,207.23,207.1,148.78]
[1756455713892,1.04,207.24,207.1,148.78]
[1756455714192,4.3424,207.23,207.1,148.78]
[1756455714694,1.04,207.24,207.1,148.78]
[1756455714895,1.04,207.24,207.11,148.5]
[1756455715497,1.04,207.24,207.12,210.42]
[1756455715791,1.04,207.24,207.12,210.34]
[1756455715993,4.342,207.25,207.13,7.8]
[1756455717095,1.04,207.3,207.15,7.8]
[1756455717493,4.3404,207.32,207.15,7.8]
[1756455717791,4.3404,207.32,207.05,12.83292743]
[1756455717792,67.5473,207.23,207.06,7.8]
[1756455718097,1.04,207.25,207.07,21.84]
[1756455718391,1.04,207.31,207.1,18.88526846]
[1756455718593,67.5238,207.3,207.11,7.8]
[1756455718794,4.3429,207.2,207.11,7.8]
[1756455718996,1.04,207.25,207.11,7.8]
[1756455719198,67.5465,207.23,207.11,7.8]
[1756455719393,4.3431,207.19,207.11,7.8]
[1756455719595,67.5465,207.23,207.11,7.8]
[1756455719995,4.3433,207.19,207.11,7.8]
[1756455720196,1.04,207.25,207.11,156.42]
[1756455720497,1.04,207.32,207.15,7.8]
[1756455720692,1.04,207.32,207.16,210.58]
[1756455720992,4.3414,207.27,207.17,148.6]
[1756455721290,67.5268,207.29,207.15,7.8]
[1756455721495,4.3412,207.28,207.15,7.8]
[1756455721697,67.525,207.3,207.16,148.62]
[1756455721997,1.04,207.32,207.17,148.62]
[1756455722191,1.04,207.32,207.18,7.8]
[1756455722998,67.5011,207.37,207.21,7.8]
[1756455723590,67.5011,207.37,207.22,122.6]
[1756455723795,1.04,207.39,207.22,122.6]
[1756455723995,1.04,207.39,207.23,7.8]
[1756455724193,148.24,207.44,207.25,18.88526846]
[1756455724392,67.4602,207.5,207.3,18.88526846]
[1756455724393,1.04,207.45,207.3,18.88526846]
[1756455724697,1.04,207.47,207.26,324.3]
[1756455724892,67.5042,207.36,207.15,5.23793786]
[1756455725088,67.478,207.44,207.06,18.88526846]
[1756455725089,1.04,207.45,207.29,18.88526846]
[1756455725295,67.4619,207.49,207.35,7.8]
[1756455725493,67.4519,207.52,207.35,7.8]
[1756455725494,67.4558,207.51,207.35,7.8]
[1756455725695,67.4584,207.5,207.36,149.0]
[1756455725895,67.4584,207.5,207.35,7.8]
[1756455726097,67.4718,207.46,207.35,156.78]
[1756455726295,4.3376,207.46,207.35,156.78]
[1756455726495,1.04,207.48,207.36,148.94]
[1756455726692,67.4749,207.45,207.32,324.26]
[1756455726994,4.338,207.44,207.33,148.92]
[1756455727196,1.04,207.48,207.33,156.09]
[1756455727498,4.3376,207.45,207.33,156.09]
[1756455727695,67.472,207.46,207.33,7.17]
[1756455727902,1.0,207.44,207.32,472.94]
[1756455728198,1.0,207.5,207.33,18.88526846]
[1756455728400,68.441,207.56,207.34,7.17]
[1756455728597,68.441,207.56,207.32,472.94]
[1756455728598,1.0,207.56,207.39,7.17]
[1756455728802,67.4145,207.64,207.41,7.17]
[1756455728995,106.1051,207.61,207.41,7.17]
[1756455729197,18.88526846,207.6,207.42,19.4]
[1756455729500,1.0,207.59,207.42,19.4]
[1756455729801,1.0,207.53,207.42,30.88]
[1756455730002,1.0,207.53,207.4,7.17]
[1756455730597,1.0,207.53,207.41,148.46]
[1756455730793,67.4344,207.58,207.41,148.46]
[1756455730994,67.4362,207.57,207.4,7.17]
[1756455731202,67.4429,207.55,207.41,148.34]
[1756455731503,67.4459,207.54,207.4,69.17]
[1756455731698,67.4385,207.57,207.41,148.3]
[1756455731902,4.3359,207.54,207.41,148.3]
[1756455732098,67.4356,207.58,207.41,148.3]
[1756455732297,67.4461,207.54,207.4,69.17]
[1756455732605,67.4461,207.54,207.41,148.12]
[1756455732804,4.3359,207.54,207.41,148.12]
[1756455732997,68.4302,207.59,207.41,7.17]
[1756455733204,1.0,207.59,207.43,7.17]
[1756455733406,4.3349,207.59,207.44,18.88526846]
[1756455733597,67.4361,207.57,207.45,7.17]
[1756455734000,1.0,207.6,207.45,150.67]
[1756455734304,67.4182,207.63,207.46,7.17]
[1756455734499,67.4209,207.62,207.46,7.17]
[1756455734708,68.4118,207.65,207.47,148.2]
[1756455735104,4.3341,207.62,207.48,7.17]
[1756455735616,67.4369,207.57,207.42,7.17]
[1756455735797,4.3355,207.56,207.43,148.08]
[1756455736002,67.4297,207.59,207.43,148.08]
[1756455736203,67.4343,207.58,207.43,148.08]
[1756455736405,1.01,207.61,207.44,147.96]
[1756455736904,1.01,207.61,207.47,7.17]
[1756455737204,4.3342,207.62,207.47,7.17]
[1756455737404,4.3345,207.6,207.47,7.17]
[1756455737610,67.4295,207.59,207.47,7.17]
[1756455738105,4.3362,207.52,207.4,154.99]
[1756455738310,1.01,207.56,207.4,154.99]
[1756455738511,4.336,207.53,207.4,154.99]
[1756455738807,67.4589,207.5,207.32,7.17]
[1756455739005,1.01,207.51,207.36,18.88526846]
[1756455739006,5.3464,207.51,207.36,18.88526846]
[1756455739208,68.4465,207.57,207.37,7.17]
[1756455739405,1.01,207.62,207.42,7.17]
[1756455739708,67.4255,207.61,207.44,7.17]
[1756455739905,67.443,207.55,207.44,7.17]
[1756455740107,67.4558,207.51,207.38,7.17]
[1756455740301,67.4555,207.51,207.38,7.17]
[1756455740505,67.4596,207.5,207.38,7.17]
[1756455740700,1.01,207.52,207.38,7.17]
[1756455740701,4.337,207.48,207.38,7.17]
[1756455740911,67.4375,207.57,207.38,88.05526846]
[1756455741110,67.4375,207.57,207.39,7.17]
[1756455741505,67.4491,207.53,207.39,154.89]
[1756455741711,67.4523,207.52,207.39,154.89]
[1756455741909,4.3371,207.48,207.39,7.17]
[1756455742110,67.4523,207.52,207.39,7.17]
[1756455742308,1.01,207.53,207.39,7.17]
[1756455742808,1.01,207.59,207.4,147.56]
[1756455743014,1.01,207.59,207.41,154.73]
[1756455743209,4.336,207.53,207.41,7.17]
[1756455743414,67.456,207.51,207.33,18.88526846]
[1756455743610,67.4592,207.5,207.34,154.61]
[1756455743908,4.337,207.48,207.34,154.61]
[1756455744306,67.4494,207.53,207.35,7.17]
[1756455744512,67.4494,207.53,207.36,62.0]
[1756455744913,4.3361,207.53,207.38,26.05526846]
[1756455745113,1.01,207.54,207.38,26.05526846]
[1756455745315,67.4329,207.58,207.39,7.17]
[1756455745509,67.4401,207.56,207.39,7.17]
[1756455745706,67.4401,207.56,207.31,328.709]
[1756455745707,1.01,207.6,207.43,18.88526846]
[1756455745908,1.01,207.6,207.44,7.17]
[1756455746411,67.4297,207.59,207.44,7.17]
[1756455746613,4.3358,207.54,207.44,7.17]
[1756455746813,67.4327,207.58,207.44,7.17]
[1756455747019,67.4428,207.55,207.44,7.17]
[1756455747215,67.4592,207.5,207.38,7.17]
[1756455747415,1.01,207.5,207.38,7.17]
[1756455747618,4.3368,207.49,207.38,7.17]
[1756455747815,1.01,207.5,207.38,7.17]
[1756455748323,67.4785,207.44,207.31,7.17]
[1756455748518,1.01,207.44,207.31,7.17]
[1756455748818,67.4882,207.41,207.25,7.17]
[1756455749118,1.01,207.44,207.25,154.23]
[1756455749319,67.4832,207.43,207.25,154.23]
[1756455749521,67.4915,207.4,207.25,7.17]
[1756455749711,1.01,207.39,207.25,154.21]
[1756455749909,4.3393,207.38,207.25,154.21]
[1756455750312,67.4978,207.38,207.25,7.17]
[1756455750515,4.3402,207.33,207.25,7.17]
[1756455750714,4.3402,207.33,207.24,323.82]
[1756455750715,67.5177,207.32,207.19,18.88526846]
[1756455750915,1.01,207.35,207.19,18.88526846]
[1756455751313,67.4948,207.39,207.2,69.17]
[1756455751513,67.4948,207.39,207.21,7.17]
[1756455751815,1.01,207.36,207.22,122.16]
[1756455752519,1.01,207.36,207.21,7.17]
[1756455752722,1.01,207.36,207.21,153.77]
[1756455752916,1.01,207.36,207.21,153.81]
[1756455753117,4.3406,207.31,207.21,7.17]
[1756455753519,1.01,207.36,207.21,7.17]
[1756455753718,5.3495,207.36,207.21,7.17]
[1756455753917,1.01,207.36,207.21,7.17]
[1756455754616,4.3386,207.41,207.24,18.88526846]
[1756455754922,1.01,207.43,207.25,69.17]
[1756455755221,67.4881,207.41,207.25,69.17]
[1756455755422,67.485,207.42,207.25,69.17]
[1756455755622,4.3386,207.41,207.25,69.17]
[1756455755821,1.01,207.43,207.25,69.17]
[1756455756023,67.4887,207.41,207.26,128.5]
[1756455756223,1.01,207.43,207.27,18.88526846]
[1756455756421,4.3386,207.41,207.27,18.88526846]
[1756455756623,67.4882,207.41,207.27,18.88526846]
[1756455756816,67.5085,207.35,207.25,7.17]
[1756455757018,67.5085,207.35,207.18,7.38]
[1756455757321,1.01,207.32,207.18,7.38]
[1756455758129,5.3505,207.32,207.18,7.38]
[1756455758325,1.01,207.32,207.18,7.38]
[1756455758622,4.3421,207.24,207.13,18.88526846]
[1756455758828,1.01,207.27,207.12,7.38]
[1756455759124,4.3427,207.21,207.12,7.38]
[1756455759313,67.5376,207.26,207.12,7.38]
[1756455759515,1.01,207.27,207.12,7.38]
[1756455759921,1.01,207.27,207.13,62.0]
[1756455760422,1.01,207.27,207.13,80.88526846]
[1756455760617,1.01,207.27,207.13,226.62526846]
[1756455760823,1.01,207.33,207.14,7.38]
[1756455761523,67.5337,207.27,207.1,323.94]
[1756455761724,68.542,207.28,207.1,469.58]
[1756455762024,4.342,207.24,207.1,469.58]
[1756455762224,68.5405,207.28,207.1,469.58]
[1756455762721,1.01,207.28,207.1,469.58]
[1756455762927,1.01,207.36,207.14,7.38]
[1756455763123,1.01,207.36,207.19,7.38]
[1756455763324,1.01,207.36,207.1,469.58]
[1756455763325,1.01,207.36,207.23,18.88526846]
[1756455763625,4.3383,207.42,207.24,7.38]
[1756455763816,67.4909,207.41,207.24,7.38]
[1756455764014,1.01,207.4,207.25,62.0]
[1756455764817,1.01,207.4,207.26,26.26526846]
[1756455765218,1.01,207.4,207.26,7.38]
[1756455765427,1.01,207.46,207.27,7.38]
[1756455765629,1.01,207.46,207.32,7.38]
[1756455765829,1.01,207.46,207.33,50.74]
[1756455766325,4.3372,207.48,207.33,50.74]
[1756455766517,1.01,207.51,207.33,50.74]
[1756455766915,67.4782,207.44,207.32,7.38]
[1756455767128,1.01,207.41,207.27,7.38]
[1756455768226,4.3389,207.39,207.27,7.38]
[1756455769228,1.01,207.47,207.29,7.38]
[1756455769629,4.3379,207.44,207.29,7.38]
[1756455770324,4.3379,207.44,207.3,144.92]
[1756455770526,5.3473,207.47,207.31,7.38]
[1756455770925,1.01,207.47,207.31,7.38]
[1756455771828,4.3379,207.44,207.31,151.94]
[1756455772826,1.01,207.52,207.34,7.38]
[1756455773424,1.01,207.52,207.39,7.38]
[1756455777238,1.01,207.48,207.33,7.38]
[1756455777628,67.4822,207.43,207.27,4.00318374]
[1756455777831,67.4822,207.43,207.28,7.38]
[1756455778632,1.01,207.44,207.31,7.38]
[1756455779235,4.3383,207.42,207.31,7.38]
[1756455779432,1.01,207.44,207.31,7.38]
[1756455781233,1.01,207.49,207.31,7.38]
[1756455781432,324.97,207.54,207.36,7.38]
[1756455781641,4.3362,207.52,207.37,7.38]
[1756455781834,4.3362,207.52,207.38,7.38]
[1756455782237,1.01,207.54,207.38,7.38]
[1756455782538,1.01,207.54,207.41,7.38]
[1756455783637,67.4429,207.55,207.35,7.38]
[1756455783638,4.3378,207.44,207.35,7.38]
[1756455783843,68.4826,207.46,207.35,7.38]
[1756455784035,1.01,207.46,207.35,7.38]
[1756455784743,4.3382,207.43,207.35,7.38]
[1756455785240,1.01,207.46,207.35,7.38]
[1756455785438,67.4555,207.51,207.35,7.38]
[1756455785743,68.4754,207.48,207.35,7.38]
[1756455785939,1.01,207.48,207.35,7.38]
[1756455786750,4.3374,207.46,207.35,7.38]
[1756455787441,4.3378,207.44,207.35,7.38]
[1756455787637,67.4754,207.45,207.35,7.38]
[1756455788150,4.3383,207.42,207.35,7.38]
[1756455788349,1.01,207.48,207.35,7.38]
[1756455789046,68.476,207.48,207.35,7.38]
[1756455789451,4.3376,207.45,207.35,7.38]
[1756455789652,1.01,207.48,207.35,7.38]
[1756455789852,5.3472,207.48,207.35,7.38]
[1756455790053,1.01,207.48,207.35,7.38]
[1756455790654,67.4765,207.45,207.35,7.38]
[1756455790854,68.4773,207.48,207.35,7.38]
[1756455791258,1.01,207.48,207.35,7.38]
[1756455792152,67.4511,207.53,207.35,11.38318374]
[1756455792454,4.3372,207.48,207.36,11.18318374]
[1756455792654,67.459,207.5,207.36,11.18318374]
[1756455792855,1.03,207.49,207.36,7.18]
[1756455793051,4.337,207.48,207.36,7.18]
[1756455793355,1.03,207.54,207.38,11.18318374]
[1756455793558,1.03,207.54,207.41,4.00318374]
[1756455793559,5.3658,207.54,207.41,4.00318374]
[1756455793758,1.03,207.59,207.43,11.18318374]
[1756455794149,67.4168,207.63,207.44,26.06526846]
[1756455794355,67.4168,207.63,207.45,7.18]
[1756455794655,1.03,207.64,207.48,7.18]
[1756455794857,1.03,207.64,207.48,11.18318374]
[1756455795258,4.3341,207.62,207.48,11.18318374]
[1756455795456,1.03,207.64,207.5,7.18]
[1756455795658,1.0,207.69,207.5,7.18]
[1756455795857,1.0,207.69,207.53,7.18]
[1756455796060,1.0,207.69,207.53,66.92]
[1756455796563,1.0,207.69,207.54,7.18]
[1756455796957,142.78,207.74,207.55,4.00318374]
[1756455797161,142.78,207.74,207.58,7.18]
[1756455797363,1.0,207.74,207.58,7.18]
[1756455797559,67.3845,207.73,207.6,7.18]
[1756455797761,67.3951,207.7,207.54,4.00318374]
[1756455797960,183.78157844,207.71,207.55,7.18]
[1756455798260,183.78157844,207.71,207.58,7.18]
[1756455799058,188.11377844,207.71,207.58,7.18]
[1756455799564,183.78157844,207.71,207.58,7.18]
[1756455799967,4.3331,207.67,207.58,7.18]
[1756455800164,183.78157844,207.71,207.58,26.06526846]
[1756455800467,183.78157844,207.71,207.59,7.18]
[1756455800667,251.17247844,207.71,207.59,7.18]
[1756455801166,4.3327,207.69,207.59,7.18]
[1756455801566,251.17277844,207.71,207.59,7.18]
[1756455802062,183.78157844,207.71,207.59,26.06526846]
[1756455802268,1.0,207.74,207.59,26.06526846]
[1756455802567,1.0,207.74,207.59,116.56526846]
[1756455802863,5.3318,207.74,207.59,116.56526846]
[1756455803070,5.3318,207.74,207.6,7.18]
[1756455803369,67.3845,207.73,207.6,7.18]
[1756455803770,1.0,207.74,207.6,7.18]
[1756455803964,4.3323,207.71,207.6,7.18]
[1756455804166,67.3942,207.7,207.6,7.18]
[1756455804566,4.3329,207.68,207.6,7.18]
[1756455805071,67.4004,207.68,207.55,342.62526846]
[1756455805276,67.3873,207.72,207.56,140.88]
[1756455805473,67.3948,207.7,207.57,7.18]
[1756455805772,4.333,207.67,207.57,7.18]
[1756455807773,1.0,207.66,207.6,0.03098583]
[1756455808169,4.3339,207.63,207.6,0.03098583]
[1756455808473,67.397,207.69,207.6,0.03098583]
[1756455808474,67.3937,207.7,207.6,0.03098583]
[1756455808674,67.4004,207.68,207.6,0.03098583]
[1756455809075,4.3338,207.64,207.6,0.03098583]
[1756455809777,4.3343,207.61,207.6,0.03098583]
[1756455809971,68.404,207.67,207.6,0.03098583]
[1756455810177,67.4069,207.66,207.6,0.03098583]
[1756455810577,4.3339,207.63,207.6,0.03098583]
[1756455811474,67.3937,207.7,207.6,0.03098583]
[1756455812475,1.0,207.72,207.6,0.03098583]
[1756455812676,4.3328,207.69,207.6,0.03098583]
[1756455812880,1.0,207.72,207.6,0.03098583]
[1756455814574,140.08,207.74,207.61,7.18]
[1756455815775,1.0,207.77,207.63,18.88526846]
[1756455816182,5.331,207.77,207.64,7.18]
[1756455816376,5.331,207.77,207.65,139.4]
[1756455817172,1.0,207.77,207.65,139.4]
[1756455817377,0.95,207.82,207.66,7.44]
[1756455818481,0.95,207.78,207.63,21.68]
[1756455818678,67.3655,207.79,207.6,26.32526846]
[1756455818679,67.381,207.74,207.6,7.44]
[1756455818885,67.381,207.74,207.61,139.06]
[1756455819079,0.95,207.72,207.6,7.44]
[1756455819482,0.95,207.72,207.61,139.08]